bitfinex/quotes_BTCUSD_20230117
["timestamp","ask_amount","ask_price","bid_price","bid_amount"]
[1673970209218,0.69953238,21097.0,21096.0,0.54693365]
[1673970209704,0.70853238,21097.0,21096.0,0.54693365]
[1673970209946,0.37744638,21097.0,21096.0,0.57193365]
[1673970210207,0.37744638,21097.0,21092.0,0.02181993]
[1673970210208,0.57817233,21097.0,21092.0,0.02181993]
[1673970210462,0.37744638,21093.0,21092.0,0.02181993]
[1673970210706,0.69953238,21093.0,21092.0,0.02181993]
[1673970210952,0.69953238,21093.0,21092.0,0.10420993]
[1673970211262,0.69953238,21093.0,21092.0,0.02181993]
[1673970211515,0.89025833,21093.0,21092.0,0.02181993]
[1673970211767,1.97240928,21093.0,21092.0,1.993e-05]
[1673970212013,0.15,21092.0,21088.0,0.00084]
[1673970212477,0.37744638,21089.0,21088.0,0.00084]
[1673970212558,0.15,21088.0,21086.0,6.355e-05]
[1673970212784,2.85331015,21087.0,21081.0,0.009683]
[1673970213031,2.85331015,21087.0,21081.0,8.3e-05]
[1673970213032,0.37744638,21082.0,21081.0,8.3e-05]
[1673970213285,0.51281195,21082.0,21081.0,8.3e-05]
[1673970213530,0.37744638,21083.0,21081.0,0.082473]
[1673970213776,0.00252,21087.0,21081.0,0.025083]
[1673970214026,0.00252,21087.0,21082.0,0.025]
[1673970214027,0.37996638,21087.0,21082.0,0.025]
[1673970214263,0.19072595,21086.0,21081.0,8.3e-05]
[1673970214536,0.00252,21087.0,21081.0,8.3e-05]
[1673970214785,0.00252,21087.0,21082.0,0.50220169]
[1673970215046,0.8573513,21095.0,21084.0,0.22255362]
[1673970215283,0.73382093,21097.0,21087.0,1.422657]
[1673970215531,0.73382093,21097.0,21088.0,0.025]
[1673970215532,0.77969926,21094.0,21088.0,0.025]
[1673970215781,0.37744638,21091.0,21089.0,0.025]
[1673970216015,0.37744638,21091.0,21085.0,0.474269]
[1673970216016,0.008,21087.0,21085.0,0.474269]
[1673970216264,0.19072595,21086.0,21081.0,0.52146505]
[1673970216517,0.19072595,21086.0,21081.0,0.474436]
[1673970216518,0.19072595,21085.0,21081.0,0.474436]
[1673970216770,0.89746794,21086.0,21081.0,8.3e-05]
[1673970216771,0.19072595,21084.0,21081.0,8.3e-05]
[1673970217013,0.89746794,21086.0,21081.0,8.3e-05]
[1673970217014,0.56817233,21083.0,21081.0,8.3e-05]
[1673970217260,0.19072595,21082.0,21081.0,8.3e-05]
[1673970217530,0.472086,21082.0,21081.0,8.3e-05]
[1673970217778,0.51281195,21082.0,21081.0,8.3e-05]
[1673970218037,0.322086,21082.0,21081.0,8.3e-05]
[1673970218286,1.09559523,21082.0,21081.0,8.3e-05]
[1673970218526,1.20236928,21082.0,21081.0,8.3e-05]
[1673970218768,1.65598128,21082.0,21081.0,0.002083]
[1673970219010,1.62260591,21082.0,21081.0,0.002083]
[1673970219256,0.048907,21080.0,21077.0,0.02405474]
[1673970219502,0.37744638,21078.0,21077.0,0.02405474]
[1673970219763,0.69953238,21078.0,21077.0,0.02405474]
[1673970220010,0.69953238,21078.0,21076.0,0.02334485]
[1673970220011,0.15,21077.0,21076.0,0.02334485]
[1673970220275,0.15,21076.0,21067.0,0.00776619]
[1673970220523,0.37744638,21070.0,21067.0,0.00776619]
[1673970220791,0.37744638,21070.0,21063.0,0.15]
[1673970220792,0.82470169,21068.0,21059.0,0.4749026]
[1673970221065,0.82470169,21068.0,21044.0,0.14068406]
[1673970221066,3.10966638,21060.0,21044.0,0.14068406]
[1673970221321,0.14057,21064.0,21028.0,0.23777]
[1673970221322,0.23758,21046.0,21035.0,0.21294368]
[1673970221579,1.899784,21055.0,21038.0,0.03443837]
[1673970221580,0.4904744,21050.0,21038.0,0.03443837]
[1673970221823,0.1396,21057.0,21039.0,0.960993]
[1673970221824,0.19072595,21049.0,21039.0,0.960993]
[1673970222087,0.19013595,21048.0,21043.0,0.21294368]
[1673970222352,0.1474,21046.0,21044.0,0.010384]
[1673970222590,1.0,21056.0,21038.0,0.475329]
[1673970222591,0.47720169,21045.0,21038.0,0.475329]
[1673970222822,0.63905584,21044.0,21038.0,0.475325]
[1673970223092,0.16715,21051.0,21044.0,0.1485]
[1673970223339,0.06222,21054.0,21050.0,0.62655368]
[1673970223610,0.48519338,21063.0,21054.0,0.1485]
[1673970223863,0.28605901,21064.0,21062.0,0.38519]
[1673970224101,0.2826,21069.0,21065.0,0.1485]
[1673970224350,0.2826,21069.0,21068.0,0.62470169]
[1673970224618,0.35905632,21076.0,21069.0,0.01591696]
[1673970224930,0.35905632,21076.0,21070.0,0.19072595]
[1673970224931,0.64165632,21071.0,21070.0,0.19072595]
[1673970225113,0.64165632,21071.0,21064.0,0.624743]
[1673970225360,0.35905632,21065.0,21064.0,0.15]
[1673970225614,0.52091047,21065.0,21064.0,0.15]
[1673970225860,0.56042847,21065.0,21064.0,0.15]
[1673970226093,0.39857432,21065.0,21064.0,0.106]
[1673970226351,0.64399999,21061.0,21058.0,0.19072595]
[1673970226598,0.23702928,21061.0,21060.0,0.71460169]
[1673970226856,0.006,21065.0,21064.0,0.14138348]
[1673970227098,0.47681436,21074.0,21064.0,0.14138348]
[1673970227099,0.13479,21074.0,21064.0,1.72679712]
[1673970227349,0.07645632,21072.0,21067.0,0.23733]
[1673970227631,0.07645632,21070.0,21068.0,0.19072595]
[1673970227869,0.07645632,21070.0,21063.0,0.23738]
[1673970228106,0.13415,21073.0,21063.0,0.23738]
[1673970228107,0.07645632,21064.0,21063.0,0.474762]
[1673970228353,0.07645632,21066.0,21063.0,0.474762]
[1673970228598,0.07645632,21069.0,21065.0,0.1485]
[1673970228858,0.07645632,21072.0,21067.0,0.1485]
[1673970229103,0.13415,21078.0,21068.0,1.186604]
[1673970229104,0.47804078,21077.0,21068.0,1.186604]
[1673970229374,0.15,21079.0,21072.0,0.1485]
[1673970229375,0.07645632,21076.0,21072.0,0.1485]
[1673970229611,0.07645632,21076.0,21073.0,0.19072595]
[1673970229864,0.15,21079.0,21073.0,0.19072595]
[1673970229865,0.15,21079.0,21075.0,0.1485]
[1673970230113,0.08145632,21077.0,21076.0,0.19072595]
[1673970230359,0.08145632,21077.0,21068.0,0.18899905]
[1673970230360,0.43716779,21073.0,21068.0,0.04902905]
[1673970230619,0.4933475,21071.0,21066.0,0.62696627]
[1673970230856,0.16185415,21070.0,21068.0,0.1485]
[1673970231097,0.57217784,21075.0,21069.0,0.47463]
[1673970231098,0.07645632,21074.0,21069.0,0.47463]
[1673970231347,0.57217784,21075.0,21069.0,0.47463]
[1673970231348,0.57217784,21075.0,21073.0,0.1475]
[1673970231589,0.57217784,21075.0,21074.0,1.50735162]
[1673970232076,0.57217784,21075.0,21074.0,0.60216398]
[1673970232323,0.57217784,21075.0,21074.0,1.85388367]
[1673970232589,0.57217784,21075.0,21074.0,1.86238367]
[1673970232841,0.57217784,21075.0,21074.0,1.85388367]
[1673970233084,0.048907,21080.0,21074.0,1.77326674]
[1673970233331,0.21076115,21080.0,21075.0,1.10275764]
[1673970233571,0.12536332,21080.0,21076.0,0.948926]
[1673970233812,0.12536332,21080.0,21076.0,1.13965195]
[1673970234065,0.048907,21080.0,21078.0,0.1478]
[1673970234312,0.048907,21080.0,21079.0,1.07503093]
[1673970234557,0.048907,21080.0,21079.0,0.80223571]
[1673970234822,0.028907,21080.0,21079.0,1.35324698]
[1673970235075,0.028907,21080.0,21079.0,1.83894867]
[1673970235325,0.07645632,21087.0,21079.0,2.07670367]
[1673970235585,0.07645632,21087.0,21084.0,0.23714]
[1673970235833,0.15,21090.0,21085.0,1.91646764]
[1673970235834,0.07645632,21090.0,21085.0,1.91646764]
[1673970236098,0.42098162,21093.0,21086.0,0.19072595]
[1673970236356,0.07645632,21087.0,21085.0,0.948535]
[1673970236591,0.07645632,21087.0,21085.0,0.474265]
[1673970236857,0.07645632,21087.0,21086.0,0.11585873]
[1673970237356,0.07645632,21087.0,21086.0,1.06730842]
[1673970237596,0.07645632,21087.0,21086.0,1.42569769]
[1673970237846,0.15,21094.0,21086.0,1.42569769]
[1673970238094,0.1,21091.0,21088.0,0.1485]
[1673970238339,0.07900445,21089.0,21088.0,0.1485]
[1673970238576,0.07900445,21089.0,21086.0,0.481248]
[1673970238882,0.07900445,21089.0,21088.0,0.1478]
[1673970239107,0.07645632,21091.0,21088.0,1.09920469]
[1673970239351,0.07645632,21091.0,21089.0,0.1415733]
[1673970239822,0.07645632,21091.0,21090.0,0.474158]
[1673970240070,0.07645632,21091.0,21090.0,1.42551769]
[1673970240313,0.07645632,21091.0,21090.0,1.9272773]
[1673970240556,0.07645632,21092.0,21090.0,1.57401769]
[1673970240804,0.15,21097.0,21091.0,0.86275169]
[1673970241052,0.15,21097.0,21095.0,0.1485]
[1673970241284,0.07645632,21096.0,21095.0,0.05325961]
[1673970241541,0.07645632,21096.0,21095.0,1.3900263]
[1673970241787,0.07645632,21096.0,21093.0,0.8774584]
[1673970242038,0.07645632,21096.0,21094.0,0.95125269]
[1673970242287,0.07645632,21096.0,21095.0,0.62470169]
[1673970242568,0.07645632,21096.0,21095.0,1.09874669]
[1673970243067,0.07745632,21096.0,21095.0,0.621545]
[1673970243339,0.07745632,21096.0,21088.0,0.605005]
[1673970243340,1.12027965,21094.0,21089.0,0.474159]
[1673970243574,1.12027965,21094.0,21088.0,0.474185]
[1673970243575,0.07645632,21090.0,21088.0,0.474185]
[1673970243836,0.26718227,21090.0,21088.0,0.474185]
[1673970244103,0.19072595,21089.0,21087.0,0.58449307]
[1673970244358,0.19072595,21089.0,21087.0,0.95140869]
[1673970244588,0.19072595,21089.0,21086.0,0.859856]
[1673970244589,0.07745632,21090.0,21088.0,0.002]
[1673970244849,0.01355196,21088.0,21086.0,0.14081515]
[1673970245099,0.26718227,21087.0,21080.0,0.474373]
[1673970245345,0.51284395,21086.0,21083.0,0.04296696]
[1673970245580,0.07645632,21084.0,21083.0,0.04296696]
[1673970245821,0.07645632,21084.0,21083.0,1.10000169]
[1673970246101,0.26718227,21084.0,21083.0,0.1485]
[1673970246341,0.07645632,21084.0,21083.0,0.092]
[1673970246594,0.07645632,21086.0,21083.0,0.62570169]
[1673970246834,0.07645632,21086.0,21085.0,0.1476]
[1673970247084,0.01355196,21088.0,21085.0,1.0651813]
[1673970247332,0.01355196,21088.0,21087.0,0.1485]
[1673970247589,0.01355196,21088.0,21087.0,1.4531863]
[1673970247839,0.07645632,21092.0,21088.0,0.15]
[1673970248089,0.06103142,21092.0,21091.0,0.1485]
[1673970248323,0.06103142,21092.0,21091.0,0.622635]
[1673970248580,1.12027965,21094.0,21091.0,1.4530963]
[1673970248852,1.12027965,21094.0,21093.0,0.1485]
[1673970249095,1.12027965,21094.0,21093.0,1.09668]
[1673970249342,1.12027965,21094.0,21093.0,1.09979169]
[1673970249822,1.12027965,21094.0,21091.0,0.474128]
[1673970250102,0.06103142,21092.0,21091.0,0.092]
[1673970250354,0.06103142,21092.0,21089.0,0.14645975]
[1673970250355,0.38314942,21092.0,21089.0,0.14645975]
[1673970250599,0.38314942,21092.0,21091.0,0.14105673]
[1673970250600,0.06103142,21092.0,21091.0,0.14105673]
[1673970250849,0.06103142,21092.0,21087.0,0.1485]
[1673970251092,0.06103142,21092.0,21087.0,0.55127661]
[1673970251093,0.06103142,21088.0,21087.0,0.55127661]
[1673970251334,0.05599429,21088.0,21087.0,0.95141869]
[1673970251589,0.19072595,21092.0,21087.0,1.09951869]
[1673970251844,0.05599429,21093.0,21092.0,0.13162549]
[1673970252086,0.05046002,21093.0,21092.0,2.03116618]
[1673970252577,0.04546002,21093.0,21092.0,2.03116618]
[1673970252840,0.01041198,21093.0,21092.0,2.10822579]
[1673970253075,0.00493371,21093.0,21092.0,2.73726579]
[1673970253327,0.00493371,21093.0,21092.0,2.66020618]
[1673970253828,0.04546002,21096.0,21092.0,2.56820618]
[1673970254082,0.04546002,21096.0,21093.0,0.77720169]
[1673970254366,0.04546002,21096.0,21094.0,1.422204]
[1673970254901,0.04546002,21096.0,21095.0,0.47720169]
[1673970255114,0.04546002,21096.0,21095.0,0.92720169]
[1673970255364,0.04546002,21096.0,21095.0,0.62720169]
[1673970255615,0.04546002,21096.0,21095.0,1.16421169]
[1673970255862,0.04646002,21096.0,21095.0,0.73872774]
[1673970256102,0.04746002,21096.0,21095.0,0.19052605]
[1673970256855,0.002,21096.0,21095.0,0.81772774]
[1673970257112,0.04746002,21096.0,21095.0,0.66772774]
[1673970257361,0.04746002,21096.0,21095.0,0.079]
[1673970258089,0.002,21096.0,21095.0,0.55620169]
[1673970258339,0.002,21096.0,21095.0,0.67274507]
[1673970258812,0.00263688,21098.0,21096.0,0.15]
[1673970259059,0.00263688,21098.0,21097.0,0.47720169]
[1673970259795,0.00263688,21098.0,21097.0,0.77480169]
[1673970260039,0.00263688,21098.0,21097.0,0.62480169]
[1673970260272,0.00263688,21098.0,21097.0,1.07480169]
[1673970260508,0.00263688,21098.0,21097.0,1.19636257]
[1673970260994,0.00295069,21105.0,21097.0,2.17037495]
[1673970260995,0.04546002,21102.0,21097.0,2.17037495]
[1673970261260,0.04546002,21102.0,21101.0,0.1476]
[1673970261542,0.04546002,21102.0,21101.0,2.52044569]
[1673970262273,0.04646002,21102.0,21101.0,2.82044569]
[1673970262759,0.04646002,21102.0,21101.0,3.05044569]
[1673970263023,0.04646002,21102.0,21101.0,2.90044569]
[1673970263285,0.04646002,21102.0,21101.0,3.01292984]
[1673970263557,0.04646002,21102.0,21101.0,2.71292984]
[1673970264072,0.04646002,21102.0,21101.0,2.09141884]
[1673970264324,0.04646002,21102.0,21101.0,1.61421715]
[1673970264834,0.04646002,21102.0,21101.0,1.34162647]
[1673970265161,0.04646002,21102.0,21101.0,1.81882816]
[1673970265162,0.001,21102.0,21101.0,1.81882816]
[1673970265413,0.001,21102.0,21101.0,2.11882816]
[1673970265668,0.001,21102.0,21101.0,1.81882816]
[1673970265930,0.001,21102.0,21101.0,2.26882816]
[1673970266199,0.00315711,21111.0,21104.0,0.47720169]
[1673970266447,0.00315711,21111.0,21107.0,0.47720169]
[1673970266728,0.00315711,21111.0,21105.0,0.76379632]
[1673970266729,0.60315711,21111.0,21108.0,0.07705961]
[1673970266963,0.23117883,21107.0,21103.0,0.473864]
[1673970267218,0.51284395,21106.0,21103.0,0.94771]
[1673970267480,0.23117883,21107.0,21103.0,0.94771]
[1673970267481,0.51284395,21105.0,21103.0,0.94771]
[1673970267753,0.51284395,21104.0,21100.0,0.473925]
[1673970268015,0.66284395,21103.0,21099.0,0.473944]
[1673970268274,0.66284395,21103.0,21098.0,0.62329682]
[1673970268275,0.51284395,21102.0,21098.0,0.62329682]
[1673970268532,0.4749563,21105.0,21099.0,0.473945]
[1673970268533,0.19072595,21101.0,21099.0,0.473945]
[1673970268792,0.5705,21104.0,21099.0,0.473945]
[1673970269113,0.5705,21104.0,21103.0,0.008]
[1673970269326,0.5705,21104.0,21103.0,0.631346]
[1673970269563,0.5705,21104.0,21103.0,1.18227161]
[1673970269830,0.23117883,21107.0,21104.0,0.15]
[1673970270086,0.23117883,21107.0,21105.0,0.947642]
[1673970270377,0.4452095,21104.0,21103.0,0.473854]
[1673970270605,0.7673275,21104.0,21103.0,0.473854]
[1673970270857,0.42190478,21107.0,21103.0,0.473854]
[1673970271159,0.23117883,21107.0,21104.0,0.07705961]
[1673970271417,0.23117883,21107.0,21105.0,1.9837243]
[1673970271684,0.23117883,21107.0,21106.0,0.47720169]
[1673970271980,0.23117883,21107.0,21106.0,1.0042613]
[1673970272243,0.00315711,21111.0,21107.0,0.15]
[1673970272499,0.00315711,21111.0,21109.0,0.23686]
[1673970272768,0.00315711,21111.0,21110.0,2.67322215]
[1673970273077,0.40091064,21119.0,21111.0,0.15]
[1673970273318,0.25969077,21123.0,21117.0,0.23677]
[1673970273596,0.422719,21120.0,21118.0,1.5012833]
[1673970273851,0.25969077,21123.0,21119.0,0.07705961]
[1673970273852,0.15,21122.0,21119.0,0.07705961]
[1673970274134,0.25969077,21123.0,21120.0,0.07705961]
[1673970274397,0.25969077,21123.0,21121.0,0.5542613]
[1673970274667,0.25969077,21123.0,21122.0,1.5011413]
[1673970275448,0.25969077,21123.0,21122.0,0.94688]
[1673970275751,0.25969077,21123.0,21122.0,1.57408169]
[1673970276006,0.25969077,21123.0,21122.0,1.87408169]
[1673970276252,0.25969077,21123.0,21122.0,1.57408169]
[1673970276525,0.25969077,21123.0,21122.0,2.01429517]
[1673970276788,0.25969077,21123.0,21122.0,1.56429517]
[1673970277240,0.25969077,21123.0,21122.0,1.86429517]
[1673970277266,0.25969077,21123.0,21122.0,1.57229517]
[1673970277498,0.25969077,21123.0,21122.0,1.56429517]
[1673970277757,0.25969077,21123.0,21122.0,2.10729517]
[1673970278335,0.01893677,21123.0,21122.0,1.65729517]
[1673970278791,0.00487106,21124.0,21122.0,2.55089274]
[1673970279046,0.00487106,21124.0,21123.0,1.25203147]
[1673970279310,0.00487106,21124.0,21123.0,1.72544847]
[1673970279576,0.00487106,21124.0,21123.0,0.95061869]
[1673970279826,0.19559701,21124.0,21123.0,0.273417]
[1673970280103,0.00487106,21124.0,21123.0,0.273417]
[1673970280363,0.00487106,21124.0,21114.0,0.473614]
[1673970280364,0.66994571,21124.0,21114.0,0.473614]
[1673970280644,1.04144395,21123.0,21117.0,0.12979367]
[1673970280950,1.04144395,21123.0,21113.0,0.47301788]
[1673970280951,1.26284395,21122.0,21113.0,0.47301788]
[1673970281206,0.59995071,21119.0,21112.0,0.13567741]
[1673970281477,0.51284395,21118.0,21114.0,0.11015706]
[1673970281731,0.322118,21117.0,21112.0,0.473657]
[1673970281988,0.19072595,21117.0,21115.0,0.10951856]
[1673970282285,0.7786,21123.0,21116.0,0.473574]
[1673970282544,0.7786,21123.0,21117.0,0.5542613]
[1673970282816,0.96932595,21123.0,21118.0,0.55057161]
[1673970283083,0.40556099,21121.0,21118.0,0.07705961]
[1673970285207,0.7786,21123.0,21118.0,1.420581]
[1673970285461,0.25,21123.0,21119.0,0.77301788]
[1673970285727,0.25,21123.0,21120.0,1.57044]
[1673970285991,0.25,21123.0,21121.0,0.47720169]
[1673970286332,0.25,21123.0,21122.0,1.42408169]
[1673970286582,0.25,21123.0,21122.0,1.5011413]
[1673970286838,8.69e-06,21126.0,21123.0,0.2499999]
[1673970287086,0.0031679,21128.0,21123.0,0.32705951]
[1673970287343,0.0031679,21128.0,21124.0,1.02384961]
[1673970287649,0.0031679,21128.0,21125.0,0.07705961]
[1673970287917,0.0031679,21128.0,21126.0,0.9467]
[1673970288203,0.0031679,21128.0,21127.0,0.07705961]
[1673970288472,0.0031679,21128.0,21127.0,1.24425984]
[1673970288733,0.0031679,21128.0,21127.0,2.10812153]
[1673970289068,0.00487106,21132.0,21127.0,2.10812153]
[1673970289332,0.00487106,21132.0,21128.0,1.02519414]
[1673970289594,0.00487106,21132.0,21130.0,0.15]
[1673970289885,0.00487106,21132.0,21131.0,0.946476]
[1673970290145,0.00487106,21132.0,21131.0,1.09962631]
[1673970290419,0.00087106,21132.0,21131.0,1.09962631]
[1673970290684,0.54066826,21136.0,21131.0,0.473238]
[1673970290685,0.15,21135.0,21131.0,0.473238]
[1673970290953,0.19072595,21134.0,21128.0,0.473283]
[1673970291211,0.21955393,21135.0,21126.0,0.62824585]
[1673970291212,0.51284395,21133.0,21126.0,0.62824585]
[1673970291487,0.51284395,21132.0,21128.0,0.61186898]
[1673970291723,0.19072595,21132.0,21128.0,0.61186898]
[1673970291995,0.19072595,21131.0,21130.0,0.078]
[1673970292250,0.322118,21131.0,21123.0,0.59153488]
[1673970292569,0.94062582,21130.0,21126.0,0.005]
[1673970292841,0.94062582,21130.0,21123.0,0.473401]
[1673970292842,1.13613095,21129.0,21120.0,0.47348]
[1673970293113,0.623287,21129.0,21119.0,0.473498]
[1673970293379,0.623287,21129.0,21115.0,0.473584]
[1673970293380,1.76097848,21128.0,21115.0,0.473584]
[1673970293664,0.59995071,21124.0,21116.0,0.07705961]
[1673970293933,0.51284395,21123.0,21117.0,0.13311669]
[1673970294242,0.51284395,21122.0,21117.0,0.13311669]
[1673970294499,0.51284395,21121.0,21117.0,0.13311669]
[1673970294761,0.322118,21120.0,21117.0,0.13311669]
[1673970295024,0.5342,21124.0,21116.0,0.473557]
[1673970295291,0.5342,21124.0,21117.0,0.55059961]
[1673970295292,0.70534476,21123.0,21117.0,0.55059961]
[1673970295654,0.70534476,21123.0,21118.0,0.07705961]
[1673970295655,0.51461881,21123.0,21118.0,0.07705961]
[1673970295872,0.5342,21124.0,21119.0,1.420491]
[1673970296120,0.46586707,21127.0,21120.0,0.84799245]
[1673970296331,0.46586707,21127.0,21122.0,0.946874]
[1673970296558,0.46586707,21127.0,21123.0,0.07705961]
[1673970296783,0.4757521,21125.0,21123.0,0.07705961]
[1673970297008,0.4757521,21125.0,21121.0,0.473441]
[1673970297245,0.505678,21121.0,21116.0,0.61007175]
[1673970297456,0.98628495,21120.0,21116.0,0.61007175]
[1673970297679,0.19072595,21119.0,21117.0,0.15]
[1673970297900,0.473441,21120.0,21118.0,0.947058]
[1673970298337,0.473441,21120.0,21119.0,0.15]
[1673970298796,0.482441,21120.0,21119.0,0.15]
[1673970299027,0.492441,21120.0,21119.0,0.92720169]
[1673970299246,0.483441,21120.0,21119.0,0.92093284]
[1673970299488,0.483441,21120.0,21119.0,1.39813453]
[1673970299489,0.492441,21120.0,21119.0,1.39813453]
[1673970300161,0.492441,21120.0,21119.0,1.55179174]
[1673970300602,0.492441,21120.0,21119.0,0.45365721]
[1673970300826,0.492441,21120.0,21119.0,0.15365721]
[1673970301057,0.483441,21120.0,21119.0,0.15365721]
[1673970301277,0.483441,21120.0,21118.0,1.420587]
[1673970301278,0.492441,21120.0,21118.0,1.420587]
[1673970301501,0.492441,21120.0,21118.0,0.947058]
[1673970302077,0.501441,21120.0,21119.0,0.14326425]
[1673970302273,0.483441,21120.0,21119.0,0.61677125]
[1673970302720,0.490441,21120.0,21119.0,0.61677125]
[1673970302931,0.490441,21120.0,21119.0,0.473507]
[1673970303172,0.483441,21120.0,21119.0,0.60567631]
[1673970303406,0.483441,21120.0,21119.0,1.30993761]
[1673970303629,0.483441,21120.0,21119.0,1.70381084]
[1673970304298,0.483441,21120.0,21119.0,0.75567631]
[1673970304509,0.483441,21120.0,21119.0,1.05567631]
[1673970304725,0.487441,21120.0,21119.0,1.10467631]
[1673970304949,0.487441,21120.0,21119.0,2.28955084]
[1673970305171,0.234161,21120.0,21119.0,2.24055084]
[1673970305385,0.234161,21120.0,21119.0,1.382878]
[1673970305600,0.238161,21120.0,21119.0,1.581878]
[1673970305829,0.5864,21130.0,21119.0,1.87177931]
[1673970306088,0.19082595,21130.0,21123.0,0.3491]
[1673970306334,0.0001,21130.0,21127.0,0.58950169]
[1673970306544,0.59117106,21137.0,21130.0,0.0493]
[1673970306762,0.49851498,21136.0,21132.0,0.946426]
[1673970307005,0.39896286,21134.0,21133.0,0.07705961]
[1673970307225,0.39896286,21134.0,21130.0,0.0493]
[1673970307226,0.322118,21134.0,21130.0,0.0493]
[1673970307444,0.51466969,21131.0,21130.0,0.12635961]
[1673970307664,0.83678769,21131.0,21130.0,0.0493]
[1673970307880,0.51466969,21131.0,21130.0,0.0493]
[1673970308600,1.165213,21136.0,21132.0,0.089]
[1673970308601,1.015633,21136.0,21132.0,0.089]
[1673970308825,1.015633,21136.0,21130.0,0.0493]
[1673970308826,0.43783676,21134.0,21133.0,0.07705961]
[1673970309055,0.75995476,21134.0,21133.0,0.07705961]
[1673970309283,0.75995476,21134.0,21130.0,0.678619]
[1673970309284,0.43783676,21134.0,21132.0,0.473209]
[1673970309638,0.43783676,21134.0,21132.0,0.008]
[1673970309918,0.44243662,21130.0,21119.0,0.77639466]
[1673970310180,1.54434397,21129.0,21122.0,0.473436]
[1673970310447,0.51284395,21128.0,21120.0,0.47347]
[1673970310732,0.51284395,21127.0,21119.0,0.473487]
[1673970310992,1.09241402,21128.0,21120.0,0.49261418]
[1673970310993,0.51284395,21126.0,21120.0,0.49261418]
[1673970311263,0.19072595,21125.0,21120.0,0.49261418]
[1673970311519,0.51284395,21124.0,21117.0,0.61189133]
[1673970311796,0.51284395,21123.0,21116.0,0.473564]
[1673970312080,0.19072595,21122.0,21117.0,0.59008001]
[1673970312355,0.5624,21123.0,21120.0,0.081]
[1673970312356,0.19072595,21121.0,21120.0,0.081]
[1673970312654,1.035823,21123.0,21117.0,0.11653501]
[1673970312655,0.5624,21123.0,21117.0,0.11653501]
[1673970312915,0.19072595,21122.0,21117.0,0.20059462]
[1673970313461,0.5624,21123.0,21119.0,0.1489564]
[1673970313722,0.5624,21123.0,21119.0,0.07705961]
[1673970313989,0.5624,21123.0,21117.0,0.14594658]
[1673970314267,0.9644526,21122.0,21117.0,0.22300619]
[1673970314528,0.9644526,21122.0,21115.0,0.01879735]
[1673970314529,0.19072595,21121.0,21115.0,0.01879735]
[1673970314998,0.51284395,21120.0,21115.0,0.01879735]
[1673970315002,0.51284395,21120.0,21113.0,0.39232142]
[1673970315260,0.51284395,21119.0,21110.0,0.63082568]
[1673970315536,0.66284395,21118.0,21110.0,0.01879735]
[1673970315813,1.64388183,21117.0,21110.0,0.01879735]
[1673970316100,1.46000995,21116.0,21115.0,0.005]
[1673970316357,1.269284,21116.0,21110.0,0.09585696]
[1673970316715,0.51284395,21115.0,21110.0,0.01879735]
[1673970316960,1.46009695,21114.0,21110.0,0.01879735]
[1673970317233,0.322118,21113.0,21110.0,0.01879735]
[1673970317559,0.51284395,21112.0,21110.0,0.01879735]
[1673970317816,1.93390195,21111.0,21102.0,0.03890712]
[1673970318080,1.93390195,21111.0,21102.0,0.11596673]
[1673970318081,0.51284395,21110.0,21102.0,0.11596673]
[1673970318333,0.473754,21108.0,21102.0,0.11596673]
[1673970318591,0.51284395,21107.0,21102.0,0.03890712]
[1673970318845,0.93929634,21106.0,21101.0,0.473904]
[1673970319108,0.19072595,21105.0,21101.0,0.473904]
[1673970319865,0.19072595,21105.0,21100.0,0.473924]
[1673970320156,0.19072595,21105.0,21101.0,0.04271765]
[1673970320371,0.43445239,21106.0,21101.0,0.11977726]
[1673970320372,0.008,21106.0,21101.0,0.11977726]
[1673970320636,0.19872595,21106.0,21101.0,0.59368026]
[1673970320888,0.19072595,21105.0,21098.0,0.51054113]
[1673970321147,0.66284395,21104.0,21101.0,0.01]
[1673970321455,0.322118,21103.0,21101.0,0.07705961]
[1673970321658,1.045021,21105.0,21101.0,0.01]
[1673970321914,0.322118,21104.0,21099.0,0.51203635]
[1673970322172,0.51284395,21103.0,21101.0,0.01]
[1673970322416,0.322118,21102.0,21099.0,0.03808335]
[1673970322679,0.322118,21101.0,21098.0,0.473964]
[1673970322934,0.17100024,21101.0,21098.0,0.473964]
[1673970323188,1.45755578,21105.0,21100.0,0.02945301]
[1673970323189,0.5792,21105.0,21100.0,0.02945301]
[1673970323449,1.053022,21105.0,21101.0,0.09678531]
[1673970323709,0.008,21105.0,21102.0,1.07677402]
[1673970323982,0.473678,21112.0,21103.0,0.77720169]
[1673970323983,0.547,21112.0,21103.0,0.77720169]
[1673970324258,0.547,21112.0,21104.0,0.94056692]
[1673970324752,0.547,21112.0,21104.0,0.473834]
[1673970325006,0.63909044,21111.0,21105.0,0.09678531]
[1673970325357,0.42395467,21107.0,21104.0,0.085]
[1673970325565,0.51284395,21106.0,21104.0,0.085]
[1673970325802,0.322118,21105.0,21104.0,0.085]
[1673970326059,0.474668,21112.0,21104.0,0.085]
[1673970326312,0.42216953,21110.0,21105.0,0.09678531]
[1673970326569,0.42216953,21110.0,21104.0,0.085]
[1673970326570,0.62523232,21108.0,21104.0,0.085]
[1673970326822,0.62523232,21108.0,21100.0,0.03397384]
[1673970326823,1.93418395,21107.0,21100.0,0.03397384]
[1673970327068,0.51284395,21106.0,21102.0,0.03623536]
[1673970327326,0.19072595,21105.0,21102.0,0.03623536]
[1673970327575,0.19072595,21105.0,21098.0,0.5050388]
[1673970327576,0.322118,21104.0,21098.0,0.5050388]
[1673970327928,0.19072595,21103.0,21098.0,0.5050388]
[1673970328169,0.620464,21106.0,21097.0,0.473981]
[1673970328170,0.19072595,21102.0,21097.0,0.473981]
[1673970328400,0.51284395,21101.0,21100.0,0.006]
[1673970328656,0.322118,21101.0,21097.0,0.03066032]
[1673970328914,0.620108,21104.0,21101.0,0.03819872]
[1673970328915,0.001,21104.0,21101.0,0.03819872]
[1673970329186,0.001,21104.0,21102.0,0.09678531]
[1673970329426,0.001,21104.0,21102.0,0.473883]
[1673970329677,1.1009497,21108.0,21102.0,0.473883]
[1673970329956,0.9551597,21108.0,21103.0,0.09678531]
[1673970330213,0.9551597,21108.0,21104.0,0.09678531]
[1673970330214,0.322118,21107.0,21104.0,0.09678531]
[1673970330493,0.54871083,21104.0,21102.0,0.006]
[1673970330723,0.322118,21103.0,21100.0,0.473922]
[1673970330977,0.51284395,21102.0,21099.0,0.0328893]
[1673970331225,0.19072595,21102.0,21099.0,0.0328893]
[1673970331477,1.65195483,21104.0,21102.0,0.006]